fUSD/lending_fUSD_20260516
["ID","MTS","AMOUNT","RATE_DAILY","PERIOD"]
[422403557,1778935902000,-259.89876524,0.00040518,120]
[422403559,1778935902000,-161.73445189,0.00040518,120]
[422403539,1778935902000,-792.23,0.00040518,14]
[422403553,1778935902000,-792.23,0.00040518,14]
[422403554,1778935902000,-792.23,0.00040518,14]
[422403555,1778935902000,-792.23,0.00040518,14]
[422403558,1778935902000,-792.23,0.00040518,14]
[422403560,1778935902000,-792.23,0.00040518,14]
[422403562,1778935902000,-359.86223131,0.00040518,120]
[422403563,1778935902000,-225.66163089,0.00040518,120]
[422403564,1778935902000,-252.17855331,0.00040518,120]
[422403565,1778935902000,-772.4,0.00040518,120]
[422403566,1778935902000,-183.08695992,0.00040518,120]
[422403567,1778935902000,-169.08417211,0.00040518,120]
[422403568,1778935902000,-228.878847,0.00040518,120]
[422403510,1778935902000,-500.0,0.00040518,120]
[422403552,1778935902000,-792.23,0.00040518,14]
[422403542,1778935902000,-204.60077867,0.00040518,120]
[422403556,1778935902000,-792.23,0.00040518,14]
[422403540,1778935902000,-792.23,0.00040518,14]
[422403505,1778935902000,-500.0,0.00040518,120]
[422403543,1778935902000,-792.23,0.00040518,14]
[422403511,1778935902000,-500.0,0.00040518,120]
[422403514,1778935902000,-500.0,0.00040518,120]
[422403518,1778935902000,-500.0,0.00040518,120]
[422403517,1778935902000,-500.0,0.00040518,120]
[422403516,1778935902000,-500.0,0.00040518,120]
[422403515,1778935902000,-500.0,0.00040518,120]
[422403525,1778935902000,-338.38407779,0.00040518,120]
[422403526,1778935902000,-214.09462804,0.00040518,120]
[422403520,1778935902000,-500.0,0.00040518,120]
[422403524,1778935902000,-500.0,0.00040518,120]
[422403523,1778935902000,-500.0,0.00040518,120]
[422403519,1778935902000,-500.0,0.00040518,120]
[422403521,1778935902000,-208.05570607,0.00040518,120]
[422403536,1778935902000,-792.23,0.00040518,14]
[422403538,1778935902000,-190.96757995,0.00040518,120]
[422403522,1778935902000,-222.5381,0.00040518,120]
[422403531,1778935902000,-452.50734201,0.00040518,120]
[422403533,1778935902000,-195.57948959,0.00040518,120]
[422403537,1778935902000,-792.23,0.00040518,14]
[422403532,1778935902000,-155.71506243,0.00040518,120]
[422403534,1778935902000,-792.23,0.00040518,14]
[422403530,1778935902000,-500.0,0.00040518,120]
[422403529,1778935902000,-217.27784982,0.00040518,120]
[422403527,1778935902000,-226.2832642,0.00040518,120]
[422403528,1778935902000,-224.13058498,0.00040518,120]
[422403535,1778935902000,-792.23,0.00040518,14]
[422403609,1778935903000,-187.7424564,0.00040518,120]
[422403611,1778935903000,-178.04201247,0.00040518,120]
[422403613,1778935903000,-253.05924742,0.00040518,120]
[422403607,1778935903000,-217.5601057,0.00040518,120]
[422403605,1778935903000,-287.84934643,0.00040518,120]
[422403601,1778935903000,-500.0,0.00040518,120]
[422403603,1778935903000,-403.97648455,0.00040518,120]
[422403606,1778935903000,-1001.84,0.00040518,2]
[422403608,1778935903000,-251.59210793,0.00040518,120]
[422403602,1778935903000,-500.0,0.00040518,120]
[422403616,1778935903000,-166.58973756,0.00040518,120]
[422403604,1778935903000,-210.85823872,0.00040518,120]
[422403615,1778935903000,-500.0,0.00040518,14]
[422403627,1778935903000,-610.9822288,0.00040518,14]
[422403617,1778935903000,-500.0,0.00040518,14]
[422403619,1778935903000,-500.0,0.00040518,14]
[422403612,1778935903000,-327.37820973,0.00040518,120]
[422403621,1778935903000,-500.0,0.00040518,14]
[422403620,1778935903000,-500.0,0.00040518,14]
[422403622,1778935903000,-500.0,0.00040518,14]
[422403618,1778935903000,-500.0,0.00040518,14]
[422403623,1778935903000,-500.0,0.00040518,14]
[422403625,1778935903000,-164.63411523,0.00040518,120]
[422403624,1778935903000,-500.0,0.00040518,14]
[422403626,1778935903000,-500.0,0.00040518,14]
[422403630,1778935903000,-157.82376179,0.00040518,120]
[422403599,1778935903000,-500.0,0.00040518,120]
[422403614,1778935903000,-500.0,0.00040518,14]
[422403610,1778935903000,-204.03643911,0.00040518,120]
[422403571,1778935903000,-217.40396658,0.00040518,120]
[422403592,1778935903000,-500.0,0.00040518,120]
[422403573,1778935903000,-20000.0,0.00040518,2]
[422403570,1778935903000,-183.45550308,0.00040518,120]
[422403572,1778935903000,-253.76012776,0.00040518,120]
[422403569,1778935903000,-443.45355741,0.00040518,120]
[422403575,1778935903000,-209.39151208,0.00040518,120]
[422403584,1778935903000,-500.0,0.00040518,120]
[422403578,1778935903000,-500.0,0.00040518,120]
[422403579,1778935903000,-500.0,0.00040518,120]
[422403583,1778935903000,-500.0,0.00040518,120]
[422403576,1778935903000,-191.02471108,0.00040518,120]
[422403574,1778935903000,-192.34431587,0.00040518,120]
[422403577,1778935903000,-500.0,0.00040518,120]
[422403585,1778935903000,-500.0,0.00040518,120]
[422403600,1778935903000,-236.8,0.00040518,120]
[422403580,1778935903000,-500.0,0.00040518,120]
[422403581,1778935903000,-500.0,0.00040518,120]
[422403586,1778935903000,-500.0,0.00040518,120]
[422403590,1778935903000,-500.0,0.00040518,120]
[422403634,1778935903000,-197.57992724,0.00040518,120]
[422403589,1778935903000,-244.07776017,0.00040518,120]
[422403587,1778935903000,-641.57247543,0.00040518,120]
[422403598,1778935903000,-500.0,0.00040518,120]
[422403597,1778935903000,-500.0,0.00040518,120]
[422403591,1778935903000,-500.0,0.00040518,120]
[422403593,1778935903000,-500.0,0.00040518,120]
[422403596,1778935903000,-500.0,0.00040518,120]
[422403594,1778935903000,-500.0,0.00040518,120]
[422403595,1778935903000,-500.0,0.00040518,120]
[422403582,1778935903000,-500.0,0.00040518,120]
[422403631,1778935903000,-156.22045755,0.00040518,30]
[422403588,1778935903000,-500.0,0.00040518,120]
[422403628,1778935903000,-299.68886846,0.00040518,120]
[422403662,1778935903000,-185.16867985,0.00040518,120]
[422403668,1778935903000,-214.55954621,0.00040518,120]
[422403672,1778935903000,-194.45548697,0.00040518,120]
[422403671,1778935903000,-605.70998004,0.00040518,120]
[422403660,1778935903000,-470.68936504,0.00040518,120]
[422403667,1778935903000,-167.66917909,0.00040518,120]
[422403669,1778935903000,-183.90169483,0.00040518,120]
[422403666,1778935903000,-290.36775462,0.00040518,120]
[422403674,1778935903000,-305.14118326,0.00040518,120]
[422403685,1778935903000,-500.0,0.00040518,120]
[422403684,1778935903000,-500.0,0.00040518,120]
[422403680,1778935903000,-195.24931214,0.00040518,120]
[422403678,1778935903000,-224.02046512,0.00040518,120]
[422403663,1778935903000,-500.0,0.00040518,120]
[422403675,1778935903000,-178.9299029,0.00040518,120]
[422403683,1778935903000,-187.90211729,0.00040518,120]
[422403673,1778935903000,-285.95834309,0.00040518,120]
[422403677,1778935903000,-234.94934474,0.00040518,120]
[422403681,1778935903000,-500.0,0.00040518,120]
[422403679,1778935903000,-223.93582745,0.00040518,120]
[422403682,1778935903000,-321.09,0.00040518,120]
[422403686,1778935903000,-500.0,0.00040518,120]
[422403688,1778935903000,-500.0,0.00040518,120]
[422403690,1778935903000,-188.1360214,0.00040518,120]
[422403692,1778935903000,-224.98845649,0.00040518,120]
[422403689,1778935903000,-500.0,0.00040518,120]
[422403691,1778935903000,-315.73232499,0.00040518,120]
[422403629,1778935903000,-270.27028245,0.00040518,120]
[422403676,1778935903000,-201.76877982,0.00040518,90]
[422403670,1778935903000,-189.08315378,0.00040518,120]
[422403687,1778935903000,-500.0,0.00040518,120]
[422403664,1778935903000,-336.39690629,0.00040518,120]
[422403665,1778935903000,-275.15202909,0.00040518,120]
[422403633,1778935903000,-218.64962517,0.00040518,120]
[422403635,1778935903000,-297.31109036,0.00040518,120]
[422403637,1778935903000,-500.0,0.00040518,120]
[422403639,1778935903000,-193.51900222,0.00040518,120]
[422403640,1778935903000,-194.23133031,0.00040518,120]
[422403636,1778935903000,-500.0,0.00040518,120]
[422403638,1778935903000,-288.98127286,0.00040518,120]
[422403642,1778935903000,-500.0,0.00040518,120]
[422403643,1778935903000,-175.60546142,0.00040518,120]
[422403645,1778935903000,-500.0,0.00040518,120]
[422403641,1778935903000,-500.0,0.00040518,120]
[422403644,1778935903000,-500.0,0.00040518,120]
[422403647,1778935903000,-568.29945534,0.00040518,120]
[422403632,1778935903000,-333.9368592,0.00040518,120]
[422403657,1778935903000,-500.0,0.00040518,120]
[422403658,1778935903000,-172.80167956,0.00040518,120]
[422403661,1778935903000,-202.85295264,0.00040518,120]
[422403659,1778935903000,-257.22278877,0.00040518,120]
[422403650,1778935903000,-190.296059,0.00040518,120]
[422403652,1778935903000,-207.68077452,0.00040518,120]
[422403648,1778935903000,-580.4616423,0.00040518,120]
[422403656,1778935903000,-500.0,0.00040518,120]
[422403653,1778935903000,-179.33136289,0.00040518,120]
[422403654,1778935903000,-500.0,0.00040518,120]
[422403651,1778935903000,-243.38791655,0.00040518,120]
[422403649,1778935903000,-614.81189084,0.00040518,120]
[422403646,1778935903000,-500.0,0.00040518,120]
[422403655,1778935903000,-500.0,0.00040518,120]
[422403731,1778935904000,-500.0,0.00040518,120]
[422403732,1778935904000,-500.0,0.00040518,120]
[422403729,1778935904000,-500.0,0.00040518,120]
[422403730,1778935904000,-500.0,0.00040518,120]
[422403726,1778935904000,-183.26837661,0.00040518,120]
[422403727,1778935904000,-721.34491921,0.00040518,2]
[422403724,1778935904000,-1210.0,0.00040518,2]
[422403734,1778935904000,-633.01046531,0.00040518,120]
[422403728,1778935904000,-500.0,0.00040518,120]
[422403733,1778935904000,-500.0,0.00040518,120]
[422403725,1778935904000,-52325.23588372,0.00040518,2]
[422403735,1778935904000,-741.94822164,0.00040518,10]
[422403736,1778935904000,-29840.21074535,0.00040518,20]
[422403742,1778935904000,-1560.04429555,0.00040518,2]
[422403744,1778935904000,-5328.45551518,0.00040518,2]
[422403738,1778935904000,-2875.96495843,0.00040518,2]
[422403747,1778935904000,-222.96700531,0.00040518,120]
[422403741,1778935904000,-992.02529277,0.00040518,2]
[422403739,1778935904000,-500.0,0.00040518,120]
[422403745,1778935904000,-503.69598312,0.00040518,2]
[422403740,1778935904000,-207.28824776,0.00040518,120]
[422403743,1778935904000,-1056.52183476,0.00040518,2]
[422403746,1778935904000,-1527.57786608,0.00040518,2]
[422403749,1778935904000,-2775.4347792,0.00040518,2]
[422403759,1778935904000,-763.47,0.00040518,14]
[422403720,1778935904000,-1651.40661291,0.00040518,10]
[422403760,1778935904000,-763.47,0.00040518,14]
[422403737,1778935904000,-357.40790408,0.00040518,2]
[422403722,1778935904000,-125427.50432491,0.00040518,2]
[422403704,1778935904000,-500.0,0.00040518,12]
[422403721,1778935904000,-172382.98342415,0.00040518,2]
[422403751,1778935904000,-155.19699483,0.00040518,2]
[422403693,1778935904000,-299.70939929,0.00040518,120]
[422403695,1778935904000,-213.45158148,0.00040518,120]
[422403694,1778935904000,-170.49487644,0.00040518,120]
[422403698,1778935904000,-500.0,0.00040518,12]
[422403696,1778935904000,-179.4194141,0.00040518,120]
[422403697,1778935904000,-152.0,0.00040518,120]
[422403700,1778935904000,-500.0,0.00040518,12]
[422403699,1778935904000,-500.0,0.00040518,12]
[422403702,1778935904000,-500.0,0.00040518,12]
[422403701,1778935904000,-500.0,0.00040518,12]
[422403711,1778935904000,-185.74778576,0.00040518,120]
[422403703,1778935904000,-500.0,0.00040518,12]
[422403710,1778935904000,-181.20377389,0.00040518,120]
[422403705,1778935904000,-500.0,0.00040518,12]
[422403706,1778935904000,-500.0,0.00040518,12]
[422403708,1778935904000,-619.66686362,0.00040518,12]
[422403707,1778935904000,-500.0,0.00040518,12]
[422403709,1778935904000,-500.0,0.00040518,120]
[422403712,1778935904000,-170.60701573,0.00040518,120]
[422403716,1778935904000,-167.00889525,0.00040518,120]
[422403715,1778935904000,-157.08048883,0.00040518,120]
[422403713,1778935904000,-500.0,0.00040518,120]
[422403717,1778935904000,-158.56111379,0.00040518,120]
[422403714,1778935904000,-382.06552522,0.00040518,120]
[422403718,1778935904000,-401.221413,0.00040518,2]
[422403723,1778935904000,-201.13048343,0.00040518,120]
[422403719,1778935904000,-207616.34849977,0.00040518,2]
[422403748,1778935904000,-2522.24098374,0.00040518,2]
[422403755,1778935904000,-199.06219137,0.00040518,120]
[422403753,1778935904000,-500.0,0.00040518,120]
[422403788,1778935904000,-58927.38624561,0.00040518,2]
[422403790,1778935904000,-500.0,0.00040518,14]
[422403787,1778935904000,-172.5453351,0.00040518,120]
[422403789,1778935904000,-1068.70473204,0.00040518,2]
[422403795,1778935904000,-153.18431999,0.00040518,30]
[422403797,1778935904000,-254.41718733,0.00040518,120]
[422403794,1778935904000,-454.82826137,0.00040518,14]
[422403793,1778935904000,-500.0,0.00040518,14]
[422403791,1778935904000,-500.0,0.00040518,14]
[422403792,1778935904000,-500.0,0.00040518,14]
[422403796,1778935904000,-559.47146594,0.00040518,2]
[422403809,1778935904000,-164.57984247,0.00040518,120]
[422403799,1778935904000,-168.25006649,0.00040518,120]
[422403786,1778935904000,-271.24960825,0.00040518,120]
[422403803,1778935904000,-1000.0,0.00040518,10]
[422403798,1778935904000,-209.22375874,0.00040518,120]
[422403801,1778935904000,-1345.73277904,0.00040518,2]
[422403800,1778935904000,-9493.16777766,0.00040518,2]
[422403806,1778935904000,-500.0,0.00040518,120]
[422403805,1778935904000,-27854.61149178,0.00040518,7]
[422403802,1778935904000,-2417.90561021,0.00040518,10]
[422403807,1778935904000,-500.0,0.00040518,120]
[422403808,1778935904000,-164.09175183,0.00040518,120]
[422403810,1778935904000,-5006.98926388,0.00040518,7]
[422403811,1778935904000,-268.0187093,0.00040518,120]
[422403754,1778935904000,-409.57072094,0.00040518,120]
[422403813,1778935904000,-23533.25670081,0.00040518,2]
[422403812,1778935904000,-2255.18427972,0.00040518,2]
[422403804,1778935904000,-3515.23775045,0.00040518,2]
[422403783,1778935904000,-763.6818791,0.00040518,14]
[422403814,1778935904000,-766.96314133,0.00040518,2]
[422403782,1778935904000,-763.47,0.00040518,14]
[422403779,1778935904000,-763.47,0.00040518,14]
[422403756,1778935904000,-255.54470772,0.00040518,2]
[422403750,1778935904000,-222365.43759481,0.00040518,2]
[422403758,1778935904000,-763.47,0.00040518,14]
[422403757,1778935904000,-763.47,0.00040518,14]
[422403761,1778935904000,-763.47,0.00040518,14]
[422403763,1778935904000,-763.47,0.00040518,14]
[422403762,1778935904000,-293.55488664,0.00040518,120]
[422403766,1778935904000,-763.47,0.00040518,14]
[422403765,1778935904000,-763.47,0.00040518,14]
[422403764,1778935904000,-763.47,0.00040518,14]
[422403770,1778935904000,-763.47,0.00040518,14]
[422403768,1778935904000,-763.47,0.00040518,14]
[422403752,1778935904000,-1720.53772416,0.00040518,2]
[422403769,1778935904000,-763.47,0.00040518,14]
[422403780,1778935904000,-763.47,0.00040518,14]
[422403781,1778935904000,-763.47,0.00040518,14]
[422403784,1778935904000,-171.20021001,0.00040518,120]
[422403777,1778935904000,-1293.76572858,0.00040518,2]
[422403767,1778935904000,-500.0,0.00040518,2]
[422403778,1778935904000,-763.47,0.00040518,14]
[422403776,1778935904000,-763.47,0.00040518,14]
[422403785,1778935904000,-202.47329444,0.00040518,120]
[422403775,1778935904000,-763.47,0.00040518,14]
[422403772,1778935904000,-763.47,0.00040518,14]
[422403773,1778935904000,-763.47,0.00040518,14]
[422403771,1778935904000,-763.47,0.00040518,14]
[422403774,1778935904000,-763.47,0.00040518,14]
[422403851,1778935905000,-350.5256304,0.00040518,2]
[422403855,1778935905000,-256.336134,0.00040518,30]
[422403852,1778935905000,-1100.0,0.00040518,2]
[422403856,1778935905000,-500.0,0.00040518,120]
[422403846,1778935905000,-220.03083514,0.00040518,2]
[422403849,1778935905000,-171.71231198,0.00040518,120]
[422403860,1778935905000,-500.0,0.00040518,120]
[422403850,1778935905000,-2500.0,0.00040518,2]
[422403845,1778935905000,-641.82228355,0.00040518,2]
[422403844,1778935905000,-721.00052284,0.00040518,2]
[422403853,1778935905000,-3926.57399292,0.00040518,2]
[422403854,1778935905000,-934.63605164,0.00040518,2]
[422403870,1778935905000,-1626.47328824,0.00040518,2]
[422403858,1778935905000,-500.0,0.00040518,120]
[422403859,1778935905000,-493.4584959,0.00040518,2]
[422403861,1778935905000,-500.0,0.00040518,120]
[422403864,1778935905000,-500.0,0.00040518,120]
[422403866,1778935905000,-631.18379627,0.00040518,2]
[422403869,1778935905000,-500.0,0.00040518,120]
[422403868,1778935905000,-500.0,0.00040518,120]
[422403863,1778935905000,-45012.94315443,0.00040518,5]
[422403871,1778935905000,-531.83685131,0.00040518,120]
[422403867,1778935905000,-500.0,0.00040518,120]
[422403865,1778935905000,-500.0,0.00040518,120]
[422403837,1778935905000,-177.94691279,0.00040518,2]
[422403857,1778935905000,-500.0,0.00040518,120]
[422403848,1778935905000,-1092.98387771,0.00040518,2]
[422403834,1778935905000,-174750.84605921,0.00040518,2]
[422403841,1778935905000,-1058.25089331,0.00040518,2]
[422403862,1778935905000,-500.0,0.00040518,120]
[422403821,1778935905000,-995.73065297,0.00040518,2]
[422403815,1778935905000,-13187.29640544,0.00040518,2]
[422403822,1778935905000,-500.0,0.00040518,10]
[422403816,1778935905000,-368.36765873,0.00040518,2]
[422403817,1778935905000,-188.82656701,0.00040518,2]
[422403820,1778935905000,-643.0,0.00040518,2]
[422403819,1778935905000,-5026.00258208,0.00040518,2]
[422403824,1778935905000,-587.89032089,0.00040518,2]
[422403823,1778935905000,-19868.01764245,0.00040518,5]
[422403826,1778935905000,-203.16609794,0.00040518,120]
[422403827,1778935905000,-3327.38764484,0.00040518,2]
[422403847,1778935905000,-208.79165503,0.00040518,120]
[422403825,1778935905000,-502499.67613,0.00040518,2]
[422403828,1778935905000,-179.90852548,0.00040518,2]
[422403832,1778935905000,-180.73409891,0.00040518,120]
[422403829,1778935905000,-181.52064791,0.00040518,120]
[422403833,1778935905000,-11000.07653013,0.00040518,2]
[422403830,1778935905000,-15196.03558955,0.00040518,2]
[422403831,1778935905000,-550.0,0.00040518,2]
[422403836,1778935905000,-234.47445782,0.00040518,2]
[422403840,1778935905000,-1309.55908106,0.00040518,2]
[422403839,1778935905000,-384.4027391,0.00040518,2]
[422403842,1778935905000,-677.88233211,0.00040518,2]
[422403838,1778935905000,-6000.0,0.00040518,2]
[422403843,1778935905000,-7999.69215292,0.00040518,2]
[422403835,1778935905000,-15343.38911647,0.00040518,2]
[422403872,1778935905000,-500.0,0.00040518,120]
[422403818,1778935905000,-158.99077474,0.00040518,120]
[422403884,1778935905000,-500.0,0.00040518,120]
[422403912,1778935905000,-279.72455902,0.00040518,120]
[422403905,1778935905000,-1145.91851911,0.00040518,2]
[422403903,1778935905000,-1882.20327528,0.00040518,2]
[422403913,1778935905000,-207.91014725,0.00040518,2]
[422403904,1778935905000,-129377.39454929,0.00040518,10]
[422403906,1778935905000,-30907.03365306,0.00040518,2]
[422403909,1778935905000,-20846.77596697,0.00040518,2]
[422403908,1778935905000,-412.55650727,0.00040518,2]
[422403910,1778935905000,-164.56602269,0.00040518,120]
[422403916,1778935905000,-289.854507,0.00040518,2]
[422403914,1778935905000,-884.88234322,0.00040518,2]
[422403917,1778935905000,-5844.69000724,0.00040518,2]
[422403907,1778935905000,-280.03084361,0.00040518,2]
[422403919,1778935905000,-2228.76352894,0.00040518,2]
[422403920,1778935905000,-898.0057961,0.00040518,2]
[422403918,1778935905000,-1150.21531856,0.00040518,2]
[422403921,1778935905000,-472.0890516,0.00040518,2]
[422403923,1778935905000,-174.73137766,0.00040518,120]
[422403926,1778935905000,-363.19801837,0.00040518,2]
[422403930,1778935905000,-761.18480145,0.00040518,2]
[422403925,1778935905000,-12984.58418826,0.00040518,2]
[422403924,1778935905000,-610.0,0.00040518,2]
[422403928,1778935905000,-204.45178797,0.00040518,2]
[422403927,1778935905000,-518.80276527,0.00040518,2]
[422403929,1778935905000,-152.78176801,0.00040518,120]
[422403874,1778935905000,-500.0,0.00040518,120]
[422403922,1778935905000,-150.0,0.00040518,2]
[422403901,1778935905000,-15208.7588974,0.00040518,2]
[422403915,1778935905000,-213.41169844,0.00040518,120]
[422403902,1778935905000,-12571.55397894,0.00040518,2]
[422403875,1778935905000,-500.0,0.00040518,120]
[422403911,1778935905000,-2501.35739504,0.00040518,2]
[422403873,1778935905000,-500.0,0.00040518,120]
[422403878,1778935905000,-500.0,0.00040518,120]
[422403876,1778935905000,-500.0,0.00040518,120]
[422403877,1778935905000,-500.0,0.00040518,120]
[422403881,1778935905000,-500.0,0.00040518,120]
[422403882,1778935905000,-500.0,0.00040518,120]
[422403879,1778935905000,-500.0,0.00040518,120]
[422403883,1778935905000,-561.83799898,0.00040518,2]
[422403885,1778935905000,-500.0,0.00040518,120]
[422403889,1778935905000,-500.0,0.00040518,120]
[422403887,1778935905000,-500.0,0.00040518,120]
[422403880,1778935905000,-500.0,0.00040518,120]
[422403895,1778935905000,-159.56817055,0.00040518,120]
[422403896,1778935905000,-1036.74251331,0.00040518,2]
[422403892,1778935905000,-500.0,0.00040518,120]
[422403898,1778935905000,-213.00338054,0.00040518,120]
[422403900,1778935905000,-197.09479194,0.00040518,120]
[422403897,1778935905000,-373.81658195,0.00040518,2]
[422403893,1778935905000,-234.83046858,0.00040518,120]
[422403899,1778935905000,-2259.82889169,0.00040518,2]
[422403891,1778935905000,-500.0,0.00040518,120]
[422403888,1778935905000,-500.0,0.00040518,120]
[422403890,1778935905000,-500.0,0.00040518,120]
[422403886,1778935905000,-500.0,0.00040518,120]
[422403894,1778935905000,-197.27746935,0.00040518,120]
[422403970,1778935906000,-500.0,0.00040518,120]
[422403973,1778935906000,-500.0,0.00040518,120]
[422403977,1778935906000,-216.66836206,0.00040518,120]
[422403971,1778935906000,-500.0,0.00040518,120]
[422403963,1778935906000,-500.0,0.00040518,120]
[422403955,1778935906000,-500.0,0.00040518,120]
[422403967,1778935906000,-500.0,0.00040518,120]
[422403969,1778935906000,-500.0,0.00040518,120]
[422403961,1778935906000,-500.0,0.00040518,120]
[422403960,1778935906000,-500.0,0.00040518,120]
[422403979,1778935906000,-197.47504999,0.00040518,120]
[422403972,1778935906000,-500.0,0.00040518,120]
[422403978,1778935906000,-415.46734351,0.00040518,120]
[422403984,1778935906000,-500.0,0.00040518,10]
[422403976,1778935906000,-218.21485406,0.00040518,120]
[422403974,1778935906000,-500.0,0.00040518,120]
[422403975,1778935906000,-583.4215943,0.00040518,120]
[422403981,1778935906000,-160.91221571,0.00040518,120]
[422403980,1778935906000,-319.57823569,0.00040518,120]
[422403982,1778935906000,-180.62958016,0.00040518,120]
[422403983,1778935906000,-207.09636344,0.00040518,120]
[422403990,1778935906000,-500.0,0.00040518,10]
[422403991,1778935906000,-500.0,0.00040518,10]
[422403989,1778935906000,-500.0,0.00040518,10]
[422403986,1778935906000,-500.0,0.00040518,10]
[422403985,1778935906000,-500.0,0.00040518,10]
[422403962,1778935906000,-500.0,0.00040518,120]
[422403968,1778935906000,-500.0,0.00040518,120]
[422403959,1778935906000,-500.0,0.00040518,120]
[422403936,1778935906000,-20000.0,0.00040518,2]
[422403958,1778935906000,-500.0,0.00040518,120]
[422403938,1778935906000,-160.73036272,0.00040518,2]
[422403987,1778935906000,-500.0,0.00040518,10]
[422403937,1778935906000,-468.31463056,0.00040518,2]
[422403939,1778935906000,-1603.40702867,0.00040518,2]
[422403934,1778935906000,-1530.88418846,0.00040518,2]
[422403935,1778935906000,-379.0,0.00040518,2]
[422403932,1778935906000,-13720.09473555,0.00040518,2]
[422403931,1778935906000,-271.4788314,0.00040518,30]
[422403940,1778935906000,-3614.71370745,0.00040518,10]
[422403951,1778935906000,-500.0,0.00040518,120]
[422403944,1778935906000,-500.0,0.00040518,2]
[422403945,1778935906000,-1990.0,0.00040518,2]
[422403941,1778935906000,-180.0,0.00040518,2]
[422403942,1778935906000,-5422.66591962,0.00040518,2]
[422403943,1778935906000,-5019.75742494,0.00040518,7]
[422403946,1778935906000,-12782.61457694,0.00040518,2]
[422403947,1778935906000,-318.48161677,0.00040518,2]
[422403948,1778935906000,-199.67389424,0.00040518,120]
[422403949,1778935906000,-500.0,0.00040518,120]
[422403952,1778935906000,-500.0,0.00040518,120]
[422403950,1778935906000,-500.0,0.00040518,120]
[422403954,1778935906000,-175.67613194,0.00040518,120]
[422403966,1778935906000,-500.0,0.00040518,120]
[422403964,1778935906000,-500.0,0.00040518,120]
[422403965,1778935906000,-500.0,0.00040518,120]
[422403956,1778935906000,-500.0,0.00040518,120]
[422403953,1778935906000,-500.0,0.00040518,120]
[422403957,1778935906000,-500.0,0.00040518,120]
[422403988,1778935906000,-500.0,0.00040518,10]
[422403933,1778935906000,-201.51354582,0.00040518,2]
[422403993,1778935906000,-500.0,0.00040518,10]
[422404024,1778935906000,-500.0,0.00040518,120]
[422404026,1778935906000,-410.06916947,0.00040518,2]
[422404029,1778935906000,-285.0,0.00040518,120]
[422404039,1778935906000,-500.0,0.00040518,120]
[422404030,1778935906000,-500.0,0.00040518,120]
[422404031,1778935906000,-500.0,0.00040518,120]
[422404034,1778935906000,-500.0,0.00040518,120]
[422404035,1778935906000,-500.0,0.00040518,120]
[422404032,1778935906000,-500.0,0.00040518,120]
[422404033,1778935906000,-500.0,0.00040518,120]
[422404028,1778935906000,-178.49672169,0.00040518,120]
[422404036,1778935906000,-500.0,0.00040518,120]
[422404037,1778935906000,-500.0,0.00040518,120]
[422404025,1778935906000,-310.66184258,0.00040518,120]
[422404038,1778935906000,-500.0,0.00040518,120]
[422404042,1778935906000,-500.0,0.00040518,120]
[422404044,1778935906000,-500.0,0.00040518,120]
[422404045,1778935906000,-500.0,0.00040518,120]
[422404043,1778935906000,-500.0,0.00040518,120]
[422404041,1778935906000,-208.85871678,0.00040518,120]
[422404051,1778935906000,-500.0,0.00040518,120]
[422404046,1778935906000,-500.0,0.00040518,120]
[422404049,1778935906000,-500.0,0.00040518,120]
[422404048,1778935906000,-500.0,0.00040518,120]
[422404047,1778935906000,-500.0,0.00040518,120]
[422404050,1778935906000,-548.76472132,0.00040518,120]
[422404053,1778935906000,-500.0,0.00040518,120]
[422403998,1778935906000,-287.19902775,0.00040518,120]